fUSD/lending_fUSD_20260505
["ID","MTS","AMOUNT","RATE_DAILY","PERIOD"]
[421603226,1777939833000,-153.0,0.00043465,120]
[421603233,1777939833000,-5000.0,0.00043799,33]
[421603232,1777939833000,-41431.0,0.0004365,60]
[421603252,1777939833000,-5000.0,0.00044999,21]
[421603241,1777939833000,-155.0,0.00044464,120]
[421603243,1777939833000,-160.0,0.00044465,120]
[421603239,1777939833000,-5000.0,0.00043999,57]
[421603234,1777939833000,-3709.50141264,0.00043816,15]
[421603238,1777939833000,-5000.0,0.00043965,103]
[421603242,1777939833000,-192.0,0.00044464,120]
[421603255,1777939833000,-5000.0,0.00044999,85]
[421603240,1777939833000,-162.48539177,0.000443,7]
[421603235,1777939833000,-5000.0,0.00043835,100]
[421603236,1777939833000,-324.98,0.00043836,120]
[421603245,1777939833000,-5000.0,0.00044559,71]
[421603246,1777939833000,-5000.0,0.0004458,87]
[421603256,1777939833000,-5000.0,0.00044999,80]
[421603244,1777939833000,-5000.0,0.00044499,110]
[421603249,1777939833000,-5000.0,0.00044999,3]
[421603247,1777939833000,-5000.0,0.00044999,15]
[421603250,1777939833000,-5000.0,0.00044999,10]
[421603237,1777939833000,-200.0,0.00043868,2]
[421603248,1777939833000,-5000.0,0.00044999,4]
[421603321,1777939834000,-500.0,0.00046301,120]
[421603326,1777939834000,-500.0,0.00046301,120]
[421603315,1777939834000,-500.0,0.00046301,120]
[421603328,1777939834000,-500.0,0.00046301,120]
[421603329,1777939834000,-324.98,0.00046301,120]
[421603327,1777939834000,-500.0,0.00046301,120]
[421603323,1777939834000,-500.0,0.00046301,120]
[421603325,1777939834000,-500.0,0.00046301,120]
[421603324,1777939834000,-500.0,0.00046301,120]
[421603319,1777939834000,-500.0,0.00046301,120]
[421603316,1777939834000,-500.0,0.00046301,120]
[421603320,1777939834000,-500.0,0.00046301,120]
[421603322,1777939834000,-500.0,0.00046301,120]
[421603331,1777939834000,-500.0,0.00046301,120]
[421603348,1777939834000,-500.0,0.00046301,120]
[421603332,1777939834000,-513.81600884,0.00046301,120]
[421603334,1777939834000,-500.0,0.00046301,120]
[421603335,1777939834000,-500.0,0.00046301,120]
[421603333,1777939834000,-500.0,0.00046301,120]
[421603340,1777939834000,-500.0,0.00046301,120]
[421603338,1777939834000,-571.03765769,0.00046301,120]
[421603336,1777939834000,-500.0,0.00046301,120]
[421603337,1777939834000,-561.50325551,0.00046301,120]
[421603341,1777939834000,-500.0,0.00046301,120]
[421603342,1777939834000,-500.0,0.00046301,120]
[421603343,1777939834000,-500.0,0.00046301,120]
[421603344,1777939834000,-500.0,0.00046301,120]
[421603311,1777939834000,-500.0,0.00046301,120]
[421603330,1777939834000,-500.0,0.00046301,120]
[421603312,1777939834000,-563.50498297,0.00046301,120]
[421603286,1777939834000,-500.0,0.00046301,120]
[421603310,1777939834000,-500.0,0.00046301,120]
[421603289,1777939834000,-500.0,0.00046301,120]
[421603288,1777939834000,-500.0,0.00046301,120]
[421603287,1777939834000,-500.0,0.00046301,120]
[421603290,1777939834000,-500.0,0.00046301,120]
[421603284,1777939834000,-500.0,0.00046301,120]
[421603291,1777939834000,-508.61306594,0.00046301,120]
[421603285,1777939834000,-500.0,0.00046301,120]
[421603293,1777939834000,-500.0,0.00046301,120]
[421603303,1777939834000,-500.0,0.00046301,120]
[421603295,1777939834000,-500.0,0.00046301,120]
[421603305,1777939834000,-500.0,0.00046301,120]
[421603304,1777939834000,-500.0,0.00046301,120]
[421603292,1777939834000,-500.0,0.00046301,120]
[421603314,1777939834000,-500.0,0.00046301,120]
[421603294,1777939834000,-611.71277883,0.00046301,120]
[421603298,1777939834000,-500.0,0.00046301,120]
[421603296,1777939834000,-500.0,0.00046301,120]
[421603299,1777939834000,-500.0,0.00046301,120]
[421603300,1777939834000,-500.0,0.00046301,120]
[421603297,1777939834000,-500.0,0.00046301,120]
[421603301,1777939834000,-500.0,0.00046301,120]
[421603317,1777939834000,-500.0,0.00046301,120]
[421603307,1777939834000,-500.0,0.00046301,120]
[421603318,1777939834000,-272.88842198,0.00046301,120]
[421603306,1777939834000,-500.0,0.00046301,120]
[421603308,1777939834000,-500.0,0.00046301,120]
[421603309,1777939834000,-500.0,0.00046301,120]
[421603313,1777939834000,-500.0,0.00046301,120]
[421603302,1777939834000,-500.0,0.00046301,120]
[421603347,1777939834000,-500.0,0.00046301,120]
[421603339,1777939834000,-500.0,0.00046301,120]
[421603353,1777939834000,-500.0,0.00046301,120]
[421603390,1777939834000,-500.0,0.00046301,120]
[421603385,1777939834000,-500.0,0.00046301,120]
[421603387,1777939834000,-500.0,0.00046301,120]
[421603383,1777939834000,-500.0,0.00046301,120]
[421603394,1777939834000,-582.90832456,0.00046301,120]
[421603388,1777939834000,-542.28025079,0.00046301,120]
[421603392,1777939834000,-500.0,0.00046301,120]
[421603386,1777939834000,-500.0,0.00046301,120]
[421603393,1777939834000,-500.0,0.00046301,120]
[421603391,1777939834000,-500.0,0.00046301,120]
[421603384,1777939834000,-500.0,0.00046301,120]
[421603382,1777939834000,-500.0,0.00046301,120]
[421603389,1777939834000,-500.0,0.00046301,120]
[421603406,1777939834000,-500.0,0.00046301,120]
[421603397,1777939834000,-500.0,0.00046301,120]
[421603396,1777939834000,-500.0,0.00046301,120]
[421603400,1777939834000,-500.0,0.00046301,120]
[421603401,1777939834000,-500.0,0.00046301,120]
[421603398,1777939834000,-500.0,0.00046301,120]
[421603405,1777939834000,-500.0,0.00046301,120]
[421603403,1777939834000,-500.0,0.00046301,120]
[421603407,1777939834000,-500.0,0.00046301,120]
[421603399,1777939834000,-500.0,0.00046301,120]
[421603404,1777939834000,-500.0,0.00046301,120]
[421603402,1777939834000,-500.0,0.00046301,120]
[421603409,1777939834000,-500.0,0.00046301,120]
[421603408,1777939834000,-500.0,0.00046301,120]
[421603410,1777939834000,-500.0,0.00046301,120]
[421603346,1777939834000,-500.0,0.00046301,120]
[421603381,1777939834000,-500.0,0.00046301,120]
[421603373,1777939834000,-208.32386766,0.00046301,120]
[421603395,1777939834000,-500.0,0.00046301,120]
[421603371,1777939834000,-500.0,0.00046301,120]
[421603380,1777939834000,-500.0,0.00046301,120]
[421603356,1777939834000,-500.0,0.00046301,30]
[421603355,1777939834000,-153.79193387,0.00046301,120]
[421603354,1777939834000,-500.0,0.00046301,120]
[421603351,1777939834000,-500.0,0.00046301,120]
[421603349,1777939834000,-500.0,0.00046301,120]
[421603350,1777939834000,-500.0,0.00046301,120]
[421603352,1777939834000,-274.39782116,0.00046301,120]
[421603357,1777939834000,-500.0,0.00046301,30]
[421603359,1777939834000,-500.0,0.00046301,30]
[421603361,1777939834000,-532.43679469,0.00046301,30]
[421603360,1777939834000,-500.0,0.00046301,30]
[421603358,1777939834000,-500.0,0.00046301,30]
[421603362,1777939834000,-500.0,0.00046301,120]
[421603365,1777939834000,-500.0,0.00046301,120]
[421603345,1777939834000,-500.0,0.00046301,120]
[421603379,1777939834000,-500.0,0.00046301,120]
[421603364,1777939834000,-500.0,0.00046301,120]
[421603368,1777939834000,-500.0,0.00046301,120]
[421603366,1777939834000,-500.0,0.00046301,120]
[421603367,1777939834000,-500.0,0.00046301,120]
[421603369,1777939834000,-500.0,0.00046301,120]
[421603378,1777939834000,-500.0,0.00046301,120]
[421603374,1777939834000,-500.0,0.00046301,120]
[421603376,1777939834000,-500.0,0.00046301,120]
[421603363,1777939834000,-500.0,0.00046301,120]
[421603372,1777939834000,-292.2,0.00046301,120]
[421603377,1777939834000,-500.0,0.00046301,120]
[421603375,1777939834000,-500.0,0.00046301,120]
[421603370,1777939834000,-500.0,0.00046301,120]
[421603454,1777939835000,-500.0,0.00046301,120]
[421603452,1777939835000,-3203.15,0.00046301,120]
[421603444,1777939835000,-500.0,0.00046301,120]
[421603450,1777939835000,-3203.15,0.00046301,120]
[421603453,1777939835000,-3203.15,0.00046301,120]
[421603455,1777939835000,-500.0,0.00046301,120]
[421603446,1777939835000,-3203.15,0.00046301,120]
[421603457,1777939835000,-500.0,0.00046301,120]
[421603447,1777939835000,-3203.15,0.00046301,120]
[421603448,1777939835000,-3203.15,0.00046301,120]
[421603456,1777939835000,-500.0,0.00046301,120]
[421603449,1777939835000,-3203.15,0.00046301,120]
[421603451,1777939835000,-3203.15,0.00046301,120]
[421603445,1777939835000,-635.02529507,0.00046301,120]
[421603461,1777939835000,-500.0,0.00046301,120]
[421603459,1777939835000,-500.0,0.00046301,120]
[421603464,1777939835000,-500.0,0.00046301,120]
[421603458,1777939835000,-500.0,0.00046301,120]
[421603470,1777939835000,-500.0,0.00046301,120]
[421603462,1777939835000,-500.0,0.00046301,120]
[421603460,1777939835000,-557.76532306,0.00046301,120]
[421603463,1777939835000,-500.0,0.00046301,120]
[421603469,1777939835000,-295.16152001,0.00046301,120]
[421603465,1777939835000,-500.0,0.00046301,120]
[421603467,1777939835000,-500.0,0.00046301,120]
[421603466,1777939835000,-500.0,0.00046301,120]
[421603471,1777939835000,-500.0,0.00046301,120]
[421603474,1777939835000,-500.0,0.00046301,2]
[421603475,1777939835000,-500.0,0.00046301,2]
[421603468,1777939835000,-500.0,0.00046301,120]
[421603437,1777939835000,-2486.78,0.00046301,120]
[421603417,1777939835000,-500.0,0.00046301,120]
[421603438,1777939835000,-203.86788377,0.00046301,120]
[421603415,1777939835000,-500.0,0.00046301,120]
[421603416,1777939835000,-153.71,0.00046301,120]
[421603419,1777939835000,-500.0,0.00046301,120]
[421603418,1777939835000,-500.0,0.00046301,120]
[421603414,1777939835000,-500.0,0.00046301,120]
[421603411,1777939835000,-500.0,0.00046301,120]
[421603413,1777939835000,-500.0,0.00046301,120]
[421603412,1777939835000,-500.0,0.00046301,120]
[421603420,1777939835000,-500.0,0.00046301,120]
[421603421,1777939835000,-500.0,0.00046301,120]
[421603422,1777939835000,-500.0,0.00046301,120]
[421603426,1777939835000,-500.0,0.00046301,120]
[421603428,1777939835000,-500.0,0.00046301,120]
[421603427,1777939835000,-500.0,0.00046301,120]
[421603424,1777939835000,-500.0,0.00046301,120]
[421603425,1777939835000,-500.0,0.00046301,120]
[421603432,1777939835000,-2486.78,0.00046301,120]
[421603431,1777939835000,-2486.78,0.00046301,120]
[421603423,1777939835000,-500.0,0.00046301,120]
[421603429,1777939835000,-498.64865129,0.00046301,120]
[421603430,1777939835000,-2486.78,0.00046301,120]
[421603434,1777939835000,-2486.78,0.00046301,120]
[421603433,1777939835000,-2486.78,0.00046301,120]
[421603440,1777939835000,-500.0,0.00046301,120]
[421603442,1777939835000,-500.0,0.00046301,120]
[421603435,1777939835000,-2486.78,0.00046301,120]
[421603436,1777939835000,-2486.78,0.00046301,120]
[421603443,1777939835000,-500.0,0.00046301,120]
[421603441,1777939835000,-500.0,0.00046301,120]
[421603439,1777939835000,-500.0,0.00046301,120]
[421603477,1777939835000,-500.0,0.00046301,2]
[421603473,1777939835000,-500.0,0.00046301,2]
[421603478,1777939835000,-283.19733226,0.00046301,2]
[421603509,1777939835000,-500.0,0.00046301,120]
[421603514,1777939835000,-500.0,0.00046301,120]
[421603513,1777939835000,-500.0,0.00046301,120]
[421603524,1777939835000,-500.0,0.00046301,120]
[421603519,1777939835000,-511.74747074,0.00046301,120]
[421603518,1777939835000,-207.81137046,0.00046301,120]
[421603516,1777939835000,-484.66593909,0.00046301,120]
[421603522,1777939835000,-500.0,0.00046301,120]
[421603520,1777939835000,-500.0,0.00046301,120]
[421603525,1777939835000,-500.0,0.00046301,120]
[421603515,1777939835000,-500.0,0.00046301,120]
[421603523,1777939835000,-500.0,0.00046301,120]
[421603517,1777939835000,-500.0,0.00046301,120]
[421603526,1777939835000,-500.0,0.00046301,120]
[421603507,1777939835000,-500.0,0.00046301,120]
[421603527,1777939835000,-500.0,0.00046301,120]
[421603537,1777939835000,-500.0,0.00046301,120]
[421603530,1777939835000,-500.0,0.00046301,120]
[421603535,1777939835000,-500.0,0.00046301,120]
[421603531,1777939835000,-500.0,0.00046301,120]
[421603529,1777939835000,-500.0,0.00046301,120]
[421603528,1777939835000,-500.0,0.00046301,120]
[421603538,1777939835000,-500.0,0.00046301,120]
[421603536,1777939835000,-500.0,0.00046301,120]
[421603532,1777939835000,-500.0,0.00046301,120]
[421603533,1777939835000,-500.0,0.00046301,120]
[421603539,1777939835000,-500.0,0.00046301,120]
[421603541,1777939835000,-500.0,0.00046301,120]
[421603540,1777939835000,-500.0,0.00046301,120]
[421603482,1777939835000,-856.63,0.00046301,120]
[421603534,1777939835000,-500.0,0.00046301,120]
[421603508,1777939835000,-500.0,0.00046301,120]
[421603521,1777939835000,-500.0,0.00046301,120]
[421603506,1777939835000,-500.0,0.00046301,120]
[421603480,1777939835000,-500.0,0.00046301,120]
[421603505,1777939835000,-500.0,0.00046301,120]
[421603472,1777939835000,-506.62143459,0.00046301,120]
[421603483,1777939835000,-856.63,0.00046301,120]
[421603476,1777939835000,-500.0,0.00046301,2]
[421603484,1777939835000,-856.63,0.00046301,120]
[421603481,1777939835000,-229.61468324,0.00046301,120]
[421603479,1777939835000,-164.25179419,0.00046301,120]
[421603485,1777939835000,-856.63,0.00046301,120]
[421603489,1777939835000,-856.63,0.00046301,120]
[421603487,1777939835000,-856.63,0.00046301,120]
[421603494,1777939835000,-805.48,0.00046301,2]
[421603490,1777939835000,-500.0,0.00046301,120]
[421603495,1777939835000,-805.48,0.00046301,2]
[421603493,1777939835000,-805.48,0.00046301,2]
[421603488,1777939835000,-856.63,0.00046301,120]
[421603492,1777939835000,-805.48,0.00046301,2]
[421603503,1777939835000,-150.9736214,0.00046301,120]
[421603491,1777939835000,-362.45714974,0.00046301,120]
[421603512,1777939835000,-245.64565608,0.00046301,120]
[421603511,1777939835000,-500.0,0.00046301,120]
[421603501,1777939835000,-349.67602487,0.00046301,120]
[421603500,1777939835000,-500.0,0.00046301,120]
[421603510,1777939835000,-500.0,0.00046301,120]
[421603504,1777939835000,-500.0,0.00046301,120]
[421603499,1777939835000,-805.48,0.00046301,2]
[421603497,1777939835000,-805.48,0.00046301,2]
[421603498,1777939835000,-805.48,0.00046301,2]
[421603496,1777939835000,-805.48,0.00046301,2]
[421603486,1777939835000,-856.63,0.00046301,120]
[421603502,1777939835000,-500.0,0.00046301,120]
[421603586,1777939836000,-500.0,0.00046301,120]
[421603585,1777939836000,-500.0,0.00046301,120]
[421603588,1777939836000,-500.0,0.00046301,120]
[421603587,1777939836000,-244.70874171,0.00046301,120]
[421603583,1777939836000,-500.0,0.00046301,120]
[421603595,1777939836000,-500.0,0.00046304,120]
[421603578,1777939836000,-500.0,0.00046301,120]
[421603584,1777939836000,-380.63307771,0.00046301,120]
[421603571,1777939836000,-500.0,0.00046301,120]
[421603576,1777939836000,-500.0,0.00046301,120]
[421603579,1777939836000,-500.0,0.00046301,120]
[421603573,1777939836000,-500.0,0.00046301,120]
[421603596,1777939836000,-9505.3046019,0.00046305,2]
[421603594,1777939836000,-805.48,0.00046304,2]
[421603591,1777939836000,-482.56987887,0.00046301,120]
[421603604,1777939836000,-1000.0,0.000465,120]
[421603589,1777939836000,-500.0,0.00046301,120]
[421603593,1777939836000,-500.0,0.00046304,120]
[421603590,1777939836000,-500.0,0.00046301,120]
[421603600,1777939836000,-738.53858152,0.0004645,120]
[421603597,1777939836000,-133226.0110502,0.00046305,2]
[421603601,1777939836000,-155.0,0.00046464,120]
[421603598,1777939836000,-41431.0,0.0004635,60]
[421603608,1777939836000,-200.0,0.00046526,2]
[421603610,1777939836000,-200.0,0.00046526,2]
[421603609,1777939836000,-200.0,0.00046526,2]
[421603599,1777939836000,-16349.89,0.000464,7]
[421603603,1777939836000,-5000.0,0.00046466,2]
[421603605,1777939836000,-150.0,0.000465,102]
[421603572,1777939836000,-500.0,0.00046301,120]
[421603592,1777939836000,-241.61015298,0.00046301,120]
[421603574,1777939836000,-500.0,0.00046301,120]
[421603551,1777939836000,-500.0,0.00046301,120]
[421603575,1777939836000,-500.0,0.00046301,120]
[421603554,1777939836000,-500.0,0.00046301,120]
[421603553,1777939836000,-500.0,0.00046301,120]
[421603544,1777939836000,-500.0,0.00046301,120]
[421603552,1777939836000,-500.0,0.00046301,120]
[421603548,1777939836000,-500.0,0.00046301,120]
[421603543,1777939836000,-500.0,0.00046301,120]
[421603542,1777939836000,-500.0,0.00046301,120]
[421603550,1777939836000,-500.0,0.00046301,120]
[421603547,1777939836000,-343.86960167,0.00046301,120]
[421603546,1777939836000,-500.0,0.00046301,120]
[421603545,1777939836000,-500.0,0.00046301,120]
[421603549,1777939836000,-500.0,0.00046301,120]
[421603556,1777939836000,-500.0,0.00046301,120]
[421603555,1777939836000,-500.0,0.00046301,120]
[421603567,1777939836000,-500.0,0.00046301,120]
[421603566,1777939836000,-500.0,0.00046301,120]
[421603557,1777939836000,-500.0,0.00046301,120]
[421603580,1777939836000,-500.0,0.00046301,120]
[421603569,1777939836000,-500.0,0.00046301,120]
[421603581,1777939836000,-500.0,0.00046301,120]
[421603582,1777939836000,-500.0,0.00046301,120]
[421603570,1777939836000,-232.5076584,0.00046301,120]
[421603563,1777939836000,-500.0,0.00046301,120]
[421603577,1777939836000,-500.0,0.00046301,120]
[421603565,1777939836000,-500.0,0.00046301,120]
[421603564,1777939836000,-500.0,0.00046301,120]
[421603568,1777939836000,-500.0,0.00046301,120]
[421603559,1777939836000,-500.0,0.00046301,120]
[421603560,1777939836000,-500.0,0.00046301,120]
[421603561,1777939836000,-587.38532006,0.00046301,120]
[421603558,1777939836000,-500.0,0.00046301,120]
[421603602,1777939836000,-160.0,0.00046465,120]
[421603606,1777939836000,-5000.0,0.0004651,31]
[421603562,1777939836000,-500.0,0.00046301,120]
[421603612,1777939836000,-200.0,0.00046526,2]
[421603645,1777939836000,-2500.0,0.000466,120]
[421603648,1777939836000,-153.0,0.000466,120]
[421603647,1777939836000,-153.0,0.000466,120]
[421603650,1777939836000,-153.0,0.000466,120]
[421603651,1777939836000,-153.0,0.000466,120]
[421603653,1777939836000,-215.24,0.000466,30]
[421603654,1777939836000,-200.0,0.000466,7]
[421603655,1777939836000,-200.0,0.000466,7]
[421603663,1777939836000,-1000.0,0.000468,17]
[421603657,1777939836000,-335.59,0.00046637,120]
[421603661,1777939836000,-266.0,0.00046736,2]
[421603660,1777939836000,-150.0,0.00046736,2]
[421603659,1777939836000,-292.0,0.00046736,2]
[421603656,1777939836000,-838.0034835,0.000466,30]
[421603658,1777939836000,-153.0,0.000467,120]
[421603662,1777939836000,-335.59,0.00046737,120]
[421603652,1777939836000,-235.0,0.000466,120]
[421603676,1777939836000,-1000.0,0.00046849,2]
[421603668,1777939836000,-2486.78,0.00046848,120]
[421603666,1777939836000,-500.0,0.00046848,120]
[421603669,1777939836000,-3203.15,0.00046848,120]
[421603674,1777939836000,-500.0,0.00046848,120]
[421603671,1777939836000,-500.0,0.00046848,120]
[421603646,1777939836000,-152.0,0.000466,120]
[421603670,1777939836000,-856.63,0.00046848,120]
[421603672,1777939836000,-500.0,0.00046848,120]
[421603677,1777939836000,-152.0,0.0004685,2]
[421603675,1777939836000,-500.0,0.00046848,120]
[421603665,1777939836000,-1000.0,0.0004684,120]
[421603667,1777939836000,-500.0,0.00046848,120]
[421603664,1777939836000,-336.31311833,0.00046837,120]
[421603673,1777939836000,-500.0,0.00046848,120]
[421603643,1777939836000,-244617.01051831,0.000466,120]
[421603607,1777939836000,-200.0,0.00046526,2]
[421603649,1777939836000,-153.0,0.000466,120]
[421603644,1777939836000,-50000.0,0.000466,32]
[421603623,1777939836000,-500.0,0.00046599,120]
[421603616,1777939836000,-189.0,0.00046527,2]
[421603620,1777939836000,-5000.0,0.00046598,30]
[421603611,1777939836000,-200.0,0.00046526,2]
[421603624,1777939836000,-500.0,0.00046599,120]
[421603613,1777939836000,-200.0,0.00046526,2]
[421603614,1777939836000,-200.0,0.00046526,2]
[421603615,1777939836000,-246.0,0.00046526,2]
[421603617,1777939836000,-5000.0,0.00046555,23]
[421603618,1777939836000,-5000.0,0.00046559,45]
[421603621,1777939836000,-235.2899804,0.00046599,30]
[421603619,1777939836000,-5000.0,0.00046574,60]
[421603625,1777939836000,-500.0,0.00046599,120]
[421603629,1777939836000,-856.63,0.00046599,120]
[421603622,1777939836000,-151.0,0.00046599,30]
[421603627,1777939836000,-3203.15,0.00046599,120]
[421603642,1777939836000,-242.02754989,0.00046599,120]
[421603641,1777939836000,-151.0,0.00046599,120]
[421603640,1777939836000,-151.0,0.00046599,120]
[421603638,1777939836000,-500.0,0.00046599,120]
[421603637,1777939836000,-500.0,0.00046599,120]
[421603632,1777939836000,-500.0,0.00046599,120]
[421603639,1777939836000,-151.0,0.00046599,120]
[421603633,1777939836000,-500.0,0.00046599,120]
[421603634,1777939836000,-500.0,0.00046599,120]
[421603636,1777939836000,-500.0,0.00046599,120]
[421603626,1777939836000,-2486.78,0.00046599,120]
[421603631,1777939836000,-500.0,0.00046599,120]
[421603630,1777939836000,-805.48,0.00046599,2]
[421603635,1777939836000,-5000.0,0.00046599,120]
[421603628,1777939836000,-500.0,0.00046599,120]
[421603732,1777939837000,-500.0,0.00047443,120]
[421603727,1777939837000,-3203.15,0.00047443,120]
[421603737,1777939837000,-805.48,0.00047443,2]
[421603726,1777939837000,-3203.15,0.00047443,120]
[421603733,1777939837000,-856.63,0.00047443,120]
[421603712,1777939837000,-1000.0,0.00047397,2]
[421603724,1777939837000,-2486.78,0.00047443,120]
[421603722,1777939837000,-2486.78,0.00047443,120]
[421603721,1777939837000,-2486.78,0.00047443,120]
[421603710,1777939837000,-2888.16125818,0.00047344,2]
[421603719,1777939837000,-522.96,0.00047443,120]
[421603725,1777939837000,-3203.15,0.00047443,120]
[421603723,1777939837000,-2486.78,0.00047443,120]
[421603735,1777939837000,-856.63,0.00047443,120]
[421603741,1777939837000,-500.0,0.00047443,120]
[421603734,1777939837000,-856.63,0.00047443,120]
[421603728,1777939837000,-3203.15,0.00047443,120]
[421603731,1777939837000,-500.0,0.00047443,120]
[421603736,1777939837000,-856.63,0.00047443,120]
[421603730,1777939837000,-500.0,0.00047443,120]
[421603738,1777939837000,-805.48,0.00047443,2]
[421603742,1777939837000,-500.0,0.00047443,120]
[421603740,1777939837000,-500.0,0.00047443,120]
[421603748,1777939837000,-500.0,0.00047443,120]
[421603750,1777939837000,-500.0,0.00047443,120]
[421603744,1777939837000,-500.0,0.00047443,120]
[421603746,1777939837000,-500.0,0.00047443,120]
[421603708,1777939837000,-254.516028,0.00047344,2]
[421603729,1777939837000,-500.0,0.00047443,120]
[421603707,1777939837000,-150.0,0.00047342,30]
[421603692,1777939837000,-1000.0,0.00046999,120]
[421603714,1777939837000,-364.652113,0.00047443,120]
[421603678,1777939837000,-152.0,0.0004685,2]
[421603679,1777939837000,-3000.0,0.0004689,71]
[421603689,1777939837000,-694.469667,0.00046967,120]
[421603690,1777939837000,-210.0,0.0004698,30]
[421603691,1777939837000,-364.08,0.00046997,120]
[421603680,1777939837000,-150.84,0.00046899,120]
[421603682,1777939837000,-805.48,0.00046899,2]
[421603681,1777939837000,-500.0,0.00046899,120]
[421603683,1777939837000,-500.0,0.00046899,120]
[421603685,1777939837000,-5000.0,0.000469,120]
[421603684,1777939837000,-500.0,0.00046899,120]
[421603688,1777939837000,-1200.0,0.000469,17]
[421603686,1777939837000,-50000.0,0.000469,32]
[421603706,1777939837000,-364.08,0.00047306,120]
[421603687,1777939837000,-2500.0,0.000469,120]
[421603694,1777939837000,-450.0,0.00047,120]
[421603696,1777939837000,-5163.0,0.00047,60]
[421603697,1777939837000,-150.0,0.00047,120]
[421603699,1777939837000,-8813.5936997,0.00047,120]
[421603698,1777939837000,-3000.0,0.00047,30]
[421603700,1777939837000,-187.61,0.00047,30]
[421603693,1777939837000,-154.77722156,0.00047,2]
[421603695,1777939837000,-30000.0,0.00047,120]
[421603701,1777939837000,-200.0,0.00047066,7]
[421603703,1777939837000,-50000.0,0.000472,32]
[421603704,1777939837000,-2500.0,0.000472,120]
[421603702,1777939837000,-1000.0,0.00047123,2]
[421603705,1777939837000,-152.0,0.000472,120]
[421603745,1777939837000,-500.0,0.00047443,120]
[421603743,1777939837000,-500.0,0.00047443,120]
[421603716,1777939837000,-500.0,0.00047443,120]
[421603749,1777939837000,-500.0,0.00047443,120]
[421603783,1777939837000,-3651.14326479,0.00047532,120]
[421603785,1777939837000,-5304.1322567,0.000476,2]
[421603786,1777939837000,-5000.0,0.000476,120]
[421603787,1777939837000,-153.0,0.000476,120]
[421603789,1777939837000,-200.0,0.000476,17]
[421603747,1777939837000,-500.0,0.00047443,120]
[421603795,1777939837000,-1000.0,0.00047671,2]
[421603801,1777939837000,-2486.78,0.00047699,120]
[421603792,1777939837000,-2888.16125818,0.000476,2]
[421603791,1777939837000,-254.516028,0.000476,2]
[421603796,1777939837000,-263.95753337,0.00047673,10]
[421603793,1777939837000,-1514.30877344,0.000476,2]
[421603802,1777939837000,-2486.78,0.00047699,120]
[421603788,1777939837000,-3709.50141264,0.000476,15]
[421603794,1777939837000,-364.08,0.00047615,120]
[421603797,1777939837000,-181.84407951,0.00047673,10]
[421603800,1777939837000,-2486.78,0.00047699,120]
[421603799,1777939837000,-300.0,0.00047699,30]
[421603804,1777939837000,-2486.78,0.00047699,120]